Cogmind - Beta 10.2 *** ADVENTURER MODE // 2021.02.15 @ 20:24:47 Player: DUMBBITCHINDYSTOPIA Result: Destroyed by Y-45 Defender with Beam Rifle Performance ------------- Evolutions (2) 1000 Regions Visited (4) 800 Robots Destroyed (60) 300 Value Destroyed (1202) 1202 Prototype IDs (7) 140 Alien Tech Used (0) 0 Bonus (263) 263 TOTAL SCORE: 3705 Bonus ------- Follower Combat Kills 320 Friendly Fire -57 Cogmind --------- Core Integrity 0/550 Matter 300/300 Energy 100/100 System Corruption 0% Temperature Cool (27) Movement Core (300) Ox5 Location -8/Materials Parts ------- > --- POWER (1) -------- (None) > --- PROPULSION (4) --- (None) > --- UTILITY (4) ------ Large Storage Unit Improved Signal Interpreter > --- WEAPON (2) ------- (None) > --- INVENTORY (10) --- Improved Ion Engine Cryofiber Web Improved Heat Sink Reflective Plating Shock Rifle Pulse Rifle Advanced Beam Rifle Advanced Beam Rifle Mini Grenade Launcher Peak State ------------ > --- POWER ------------ Light Nuclear Core > --- PROPULSION ------- Hover Unit Improved Hover Unit Improved Hover Unit > --- UTILITY ---------- Cryofiber Web Large Storage Unit Reflective Plating Hacking Suite > --- WEAPON ----------- Pulse Rifle Advanced Beam Rifle > --- INVENTORY -------- Improved Ion Engine Improved Ion Engine Improved Heat Sink Sensor Array EM Pulse Gun Advanced Beam Rifle Advanced Beam Rifle Mini Grenade Launcher Mining Claw [Rating: 27] Favorites ----------- Power Light Ion Engine Engine Light Ion Engine Power Core Light Nuclear Core Propulsion Aluminum Leg Leg Aluminum Leg Hover Unit Improved Hover Unit Utility Large Storage Unit Device Sensor Array Storage Large Storage Unit Processor Improved Signal Interpreter Hackware Hacking Suite Protection Reflective Plating Weapon Mining Claw Energy Gun EM Pulse Gun Energy Cannon Advanced Beam Cannon Ballistic Gun Assault Rifle Launcher Grenade Launcher Slashing Weapon Mining Claw Build | -11 -10 -10 -9 -8 ------- Run | Scr Mat Min Mat Mat Slots Evolved 4 | . . . 2 2 Power . | . . . . . Propulsion 2 | . . . 1 1 Utility 2 | . . . 1 1 Weapon . | . . . . . Parts Attached 62 | 7 13 4 21 17 Power 7 | 1 1 1 3 1 Engine 6 | 1 1 1 3 . Core 1 | . . . . 1 Reactor . | . . . . . Propulsion 14 | 2 1 . 10 1 Treads . | . . . . . Leg 4 | 2 1 . 1 . Wheel . | . . . . . Hover 10 | . . . 9 1 Flight . | . . . . . Utility 13 | 2 2 . 2 7 Device 6 | 1 1 . . 4 Storage 2 | 1 1 . . . Processor 2 | . . . 1 1 Hackware 1 | . . . 1 . Protection 2 | . . . . 2 Artifact . | . . . . . Weapon 28 | 2 9 3 6 8 Energy Gun 10 | . 2 1 2 5 Energy Cannon 1 | . . . 1 . Ballistic Gun 9 | 2 4 . 3 . Ballistic Cannon . | . . . . . Launcher 2 | . 1 1 . . Special Weapon . | . . . . . Impact Weapon . | . . . . . Slashing Weapon 6 | . 2 1 . 3 Piercing Weapon . | . . . . . Special Melee Weapon . | . . . . . Unidentified Prototypes 2 | . . . 1 1 Parts Lost 13 | . 3 . 2 8 Power 1 | . . . . 1 Propulsion 6 | . 1 . 2 3 Utility 2 | . . . . 2 Weapon 4 | . 2 . . 2 Highest Loss Streak 7 | . 2 . 2 7 Average Slot Usage (%) 95 | . 98 100 98 80 Engine 10 | . 14 14 10 1 Core 1 | . . . . 6 Leg 17 | . 27 28 7 . Hover 9 | . . . 24 18 Device 12 | . 14 14 11 9 Storage 12 | . 14 14 11 9 Processor 1 | . . . 3 5 Hackware 3 | . . . 6 8 Energy Gun 9 | . 9 6 9 14 Ballistic Gun 6 | . 14 . 7 . Slashing Weapon 8 | . 3 21 5 2 Naked Turns . | . . . . . Heaviest Build 33 | 12 24 27 30 33 Greatest Support 30 | 20 20 20 30 22 Greatest Overweight (x) 5 | . 2 2 4 5 Average Overweight (x) 1 | . . 1 . 1 Largest Inventory Capacity 10 | 6 10 10 10 10 Average Capacity 9 | 5 8 10 10 10 Most Carried 10 | 4 7 10 10 10 Average Carried 7 | 2 4 7 8 8 Final Capacity 10 | 6 10 10 10 10 Final Carried 10 | 2 6 10 8 9 Class Distribution -------------------- 68% | Mutant 31% | Hacker-Mutant Dominant Class ---------------- Mutant | -10/Materials Mutant | -10/Mines Hacker-Mutant | -9/Materials Hacker-Mutant | -8/Materials Resources | -11 -10 -10 -9 -8 ----------- Run | Scr Mat Min Mat Mat Matter Collected 1275 | 294 394 47 385 155 Remotely . | . . . . . Salvage Created 2033 | 144 412 . 875 602 Parts 145 | 13 21 . 70 41 Haulers Intercepted 8 | . 2 . 4 2 Recyclers Shooed . | . . . . . Parts Field Recycled . | . . . . . Retrieved Matter . | . . . . . Parts Self-Destructed . | . . . . . Prevented . | . . . . . Kills | -11 -10 -10 -9 -8 ------- Run | Scr Mat Min Mat Mat Combat Hostiles Destroyed 33 | . 8 . 14 11 Melee 3 | . . . . 3 Guns 26 | . 7 . 13 6 AOE 3 | . . . 1 2 Classes Destroyed 11 | 2 4 . 5 . Worker 2 | . . . 1 1 Builder 2 | . . . 2 . Tunneler 3 | 3 . . . . Hauler 8 | . 2 . 4 2 Recycler 2 | 1 . . . 1 Operator 2 | . . . 2 . Watcher 8 | . 3 . 3 2 Swarmer 14 | . 2 . 6 6 Grunt 11 | . 6 . 1 4 Brawler 1 | . . . 1 . Sentry 7 | . . . 6 1 Best Kill Streak 10 | 4 3 . 10 10 Combat Bots Only 5 | . 2 . 5 5 Max Kills in Single Turn 3 | 1 1 . 3 2 Gunslinging 1 | . . . 1 . Exploded 2 | . . . 1 2 Melee 1 | . . . . 1 Uniques/NPCs Destroyed . | . . . . . Combat | -11 -10 -10 -9 -8 -------- Run | Scr Mat Min Mat Mat Damage Taken 2031 | . 511 73 469 978 Core 723 | . 73 21 72 557 Absorbed by Shields . | . . . . . Core Remaining (%) 81 | 100 . 62 82 . Volleys Fired 143 | 6 58 3 47 29 Largest 2 | 2 2 1 2 2 Hottest 124 | 40 80 30 63 124 Shots Fired 260 | 12 101 3 92 52 Gun 255 | 12 99 . 92 52 Cannon . | . . . . . Launcher 5 | . 2 3 . . Special . | . . . . . Kinetic 145 | 12 88 . 45 . Thermal 37 | . . . . 37 Explosive 5 | . 2 3 . . Electromagnetic 73 | . 11 . 47 15 Robot Hit Streak 21 | 6 20 . 15 21 Robot Miss Streak 4 | 2 2 1 2 4 Penetration Max . | . . . . . Secondary Targets 3 | . 2 . 1 . Max Gunslinging Chain 1 | . 1 . 1 . Shots Hit Robots 209 | 7 82 1 73 46 Core Hits 89 | 4 21 3 36 25 Critical Hits 3 | 1 2 . . . Critical Kills . | . . . . . Critical Parts Destroyed 3 | 1 2 . . . Melee Attacks 28 | . 3 1 1 23 Impact . | . . . . . Slashing 28 | . 3 1 1 23 Piercing . | . . . . . Sneak Attacks 3 | . 1 1 . 1 Combat Hostiles . | . . . . . Follow-up Attacks . | . . . . . Damage Inflicted 3925 | 90 1144 194 1403 1094 Guns 2835 | 90 967 . 1007 771 Cannons . | . . . . . Explosions 658 | . 59 128 389 82 Melee 425 | . 118 66 . 241 Ramming 7 | . . . 7 . Kinetic 1367 | 90 812 . 465 . Thermal 998 | . . . 389 609 Explosive 187 | . 59 128 . . Electromagnetic 941 | . 155 . 542 244 Impact . | . . . . . Slashing 425 | . 118 66 . 241 Piercing . | . . . . . Highest Corruption . | . . . . . Average Corruption . | . . . . . Corruption Purged . | . . . . . Overload Shots . | . . . . . Overflow Damage 133 | . 56 42 35 . Projectiles . | . . . . . Explosions 47 | . 6 6 35 . Melee 86 | . 50 36 . . Knockbacks . | . . . . . Impact . | . . . . . Kinetic . | . . . . . Secondary . | . . . . . Self-Inflicted Damage 57 | . . . 30 27 Shots 2 | . . . 1 1 Rammed 2 | . . . 2 . Targets Rammed 2 | . . . 2 . Kicked . | . . . . . Crushed . | . . . . . Highest Temperature 327 | . 100 . 125 327 Average Temperature 57 | . 34 . 29 103 Received Heat Transfer 993 | . 342 . 156 495 Effects 4 | . . . . 4 Energy Bleed 1 | . . . . 1 Interference 3 | . . . . 3 Siege Activations . | . . . . . Robots Corrupted 1 | . 1 . . . Combat Hostiles 1 | . 1 . . . Parts Fried 2 | . 1 . 1 . Impact Corruptions . | . . . . . Robots Melted . | . . . . . Combat Hostiles . | . . . . . Parts Melted 3 | . . . 1 2 Heat Transferred 1649 | . . . 500 1149 Parts Sabotaged . | . . . . . Parts Stolen . | . . . . . Parts Stripped . | . . . . . Power Chain Reactions 7 | . . . 5 2 Missiles Intercepted . | . . . . . Alert | -11 -10 -10 -9 -8 ------- Run | Scr Mat Min Mat Mat Peak Influence 344 | 20 154 134 344 207 Initial 85 | . 11 . . 85 Average 73 | 6 43 44 143 76 Maximum Alert Level 1 | . . . 1 1 Low Security (%) 89 | 100 100 100 63 93 Level 1 10 | . . . 36 6 Level 2 . | . . . . . Level 3 . | . . . . . Level 4 . | . . . . . Level 5 . | . . . . . High Security . | . . . . . Max Security . | . . . . . Squads Dispatched 6 | . . 1 3 2 Investigation 1 | . . . 1 . Extermination . | . . . . . Reinforcement 3 | . . . 2 1 Assault 1 | . . 1 . . Garrison 1 | . . . . 1 Intercept . | . . . . . Construction Impeded . | . . . . . Haulers Reinforced . | . . . . . Stealth | -11 -10 -10 -9 -8 --------- Run | Scr Mat Min Mat Mat Distress Signals 7 | . . . 4 3 Communications Jammed . | . . . . . Distress Signals . | . . . . . Times Spotted 79 | . 14 10 24 31 Peak Tracking Total 16 | . 3 4 5 16 Tactical Retreats 4 | . . . 1 3 Traps | -11 -10 -10 -9 -8 ------- Run | Scr Mat Min Mat Mat Traps Triggered . | . . . . . Indirectly . | . . . . . Trap Hack Attempts . | . . . . . Triggered . | . . . . . Disarmed . | . . . . . Reprogrammed . | . . . . . Reused . | . . . . . Traps Extracted . | . . . . . Installed . | . . . . . Triggered . | . . . . . Machines | -11 -10 -10 -9 -8 ---------- Run | Scr Mat Min Mat Mat Machines Disabled 3 | . 2 . 1 . Max in Single Turn 1 | . 1 . 1 . Machines Sabotaged . | . . . . . Garrisons Compromised . | . . . . . Overloaded Fab Kills . | . . . . . Fab Network Shutdowns . | . . . . . Hacking | -11 -10 -10 -9 -8 --------- Run | Scr Mat Min Mat Mat Machines Accessed 18 | . 8 . 6 4 Terminals 12 | . 7 . 3 2 Fabricators . | . . . . . Repair Stations 3 | . 1 . 1 1 Recycling Units . | . . . . . Scanalyzers 3 | . . . 2 1 Garrison Access . | . . . . . Total Hacks 96 | . 41 . 40 15 Successful 67 | . 22 . 32 13 Failed 29 | . 19 . 8 2 Catastrophic . | . . . . . Database Lockouts . | . . . . . Manual 38 | . 26 . 7 5 Terminals 57 | . 35 . 16 6 Fabricators . | . . . . . Repair Stations 15 | . 6 . 7 2 Recycling Units . | . . . . . Scanalyzers 24 | . . . 17 7 Garrison Access . | . . . . . Terminal Hacks 27 | . 14 . 10 3 Robot Analysis 4 | . 3 . . 1 Prototype ID Bank 3 | . 2 . 1 . Branch Access Points 3 | . 2 . 1 . Emergency Access Points 1 | . . . . 1 Terminal Index 1 | . 1 . . . Scanalyzer Index 1 | . . . . 1 Alert Level 5 | . 2 . 3 . Unreport Threat 2 | . 1 . 1 . Locate Traps 2 | . 1 . 1 . Reinforcement Status 1 | . . . 1 . Recall Reinforcements 1 | . . . 1 . Hauler Manifests 1 | . 1 . . . Zone Layout 2 | . 1 . 1 . Fabricator Hacks . | . . . . . Repair Station Hacks 10 | . 5 . 3 2 Scan Component 5 | . 2 . 2 1 Repair 4 | . 2 . 1 1 Refit 1 | . 1 . . . Recycling Unit Hacks . | . . . . . Scanalyzer 24 | . . . 17 7 Insert Component 11 | . . . 8 3 Analyze 13 | . . . 9 4 Garrison Access Hacks . | . . . . . Unauthorized Hacks 6 | . 3 . 2 1 Terminals 6 | . 3 . 2 1 Track 1 | . 1 . . . Botnet 5 | . 2 . 2 1 Fabricators . | . . . . . Repair Stations . | . . . . . Recycling Units . | . . . . . Scanalyzers . | . . . . . Garrison Access . | . . . . . Data Cores Recovered . | . . . . . Used . | . . . . . Hacking Detections 17 | . 8 . 5 4 Full Trace Events 1 | . . . 1 . Feedback Events . | . . . . . Feedback Blocked . | . . . . . Robot Schematics Acquired . | . . . . . Robots Built . | . . . . . Matter . | . . . . . Time . | . . . . . Total Robot Build Rating . | . . . . . Part Schematics Acquired 11 | . . . 8 3 Parts Built . | . . . . . Matter . | . . . . . Time . | . . . . . Total Part Build Rating . | . . . . . Parts Repaired 4 | . 2 . 1 1 Time 97 | . 52 . 13 32 Parts Recycled . | . . . . . Recycled Matter . | . . . . . Retrieved Matter . | . . . . . Retrieved Components . | . . . . . Parts Scanalyzed 11 | . . . 8 3 Part Schematics Acquired 11 | . . . 8 3 Parts Damaged . | . . . . . Bothacking | -11 -10 -10 -9 -8 ------------ Run | Scr Mat Min Mat Mat Used RIF Installer . | . . . . . Robots Hacked . | . . . . . Non-combat . | . . . . . Combat . | . . . . . Robot Hacks Applied . | . . . . . Relay Couplers Released . | . . . . . Robots Rewired . | . . . . . Allies Hacked . | . . . . . Hacks Repelled . | . . . . . Allies | -11 -10 -10 -9 -8 -------- Run | Scr Mat Min Mat Mat Total Allies 6 | . . 6 . . Largest Group 6 | . . 6 5 . Highest-Rated Group 117 | . . 117 100 . Highest-Rated Ally 31 | . . 31 31 . Total Orders . | . . . . . Ally Attacks 73 | . . 31 42 . Total Damage 921 | . . 421 500 . Kills 19 | . . 9 10 . Allies Corrupted 1 | . . . 1 . Allies Melted . | . . . . . Intel | -11 -10 -10 -9 -8 ------- Run | Scr Mat Min Mat Mat Robot Analysis Total 4 | . 3 . . 1 Derelict Logs Recovered 3 | . . 3 . . Drone Launches . | . . . . . Drone Recoveries . | . . . . . Exploration | -11 -10 -10 -9 -8 ------------- Run | Scr Mat Min Mat Mat Turns Passed 4530 | 70 1309 1205 1124 822 Spaces Moved 2445 | 35 740 592 744 334 Core 7 | 5 . . . 2 Treads . | . . . . . Legs 1552 | 30 740 592 190 . Wheels . | . . . . . Hover 886 | . . . 554 332 Flight . | . . . . . Fastest Speed 50 | 50 120 150 112 112 Average Speed 138 | 110 143 175 115 116 Slowest Speed 300 | 120 180 180 300 300 Overloaded Moves . | . . . . . Propulsion Burnouts . | . . . . . Robots Hopped . | . . . . . Cave-ins Triggered . | . . . . . Exploration Rate (%) 53 | 3 86 92 59 28 Regions Visited 4 Branch Regions 1 Pre-discovered Areas 1 | . . 1 . . Known Exits Taken 1 | . 1 . . . Unknown Exits Taken 3 | 1 . 1 1 . Scrap Searched 1 | . . 1 . . Spaces Dug 6 | . . . 1 5 Terrain Destroyed 51 | . 8 20 11 12 Melee 6 | . . . 1 5 Projectile . | . . . . . AOE 45 | . 8 20 10 7 Terrain Rammed . | . . . . . Walls Destroyed . | . . . . . Machines Disabled . | . . . . . Actions | -11 -10 -10 -9 -8 --------- Run | Scr Mat Min Mat Mat Total 3276 | 53 879 752 924 668 Wait 521 | . 57 146 71 247 Move 2441 | 34 739 591 743 334 Hop . | . . . . . Pick Up 41 | 6 7 5 15 8 Fast Attach 14 | 3 2 1 5 3 Attach 18 | 4 2 . 9 3 Detach 5 | . . . 3 2 Swap 30 | . 9 3 7 11 Drop 33 | . 2 2 21 8 Fire 143 | 6 58 3 47 29 Melee 28 | . 3 1 1 23 Ram 1 | . . . 1 . Kick 1 | . . . 1 . Crush . | . . . . . Escape Stasis . | . . . . . Rewire . | . . . . . Trap . | . . . . . Miscellaneous . | . . . . . Route ------- -11/Scrapyard -10/Materials (discovered 4 exits: *Mat x2 / *Min x2) -10/Mines (discovered 2 exits: *Mat x2) -9/Materials (discovered 3 exits: *Mat x2 / *Min) -8/Materials History --------- Turn | Location | Event 7 | -11/Scrapyard | Discovered new exit (range 15) 71 | -11/Scrapyard | Entered Materials 228 | -10/Materials | Discovered new exit (range 14) 300 | -10/Materials | Build established: Mutant 352 | -10/Materials | Discovered new exit (range 8) 433 | -10/Materials | Identified exit to Mines 503 | -10/Materials | Discovered new exit (range 16) 735 | -10/Materials | Discovered new exit (range 11) 1053 | -10/Materials | Repaired Aluminum Leg 1081 | -10/Materials | Repaired Assault Rifle 1380 | -10/Materials | Entered Mines 1501 | -10/Mines | Assisted by bots powering up and referring to "LRC-V3" 1726 | -10/Mines | Discovered new exit (range 15) 2039 | -10/Mines | Learned Materials security intel 2077 | -10/Mines | Learned location of Mines (-9) 2151 | -10/Mines | Met a Derelict testing a Signal Generator 2459 | -10/Mines | Discovered new exit (range 8) 2585 | -10/Mines | Entered Materials 2585 | -9/Materials | Accompanied by 5 allies 2585 | -9/Materials | Evolved 2 slots: Propulsion x1, Utility x1 2586 | -9/Materials | Identified exit to Mines 2590 | -9/Materials | Led the pair of lost Derelicts to an unsafe place 2764 | -9/Materials | Repaired EM Pulse Gun 3041 | -9/Materials | Discovered new exit (range 16) 3355 | -9/Materials | Build established: Hacker-Mutant 3692 | -9/Materials | Discovered new exit (range 16) 3709 | -9/Materials | Entered another Materials area 3709 | -8/Materials | Evolved 2 slots: Propulsion x1, Utility x1 3813 | -8/Materials | Repaired Imp. Hover Unit 4467 | -8/Materials | Garrison activated, responded to threat 4519 | -8/Materials | Core integrity fell below 50% 4527 | -8/Materials | Core integrity fell below 20% 4531 | -8/Materials | Destroyed by Y-45 Defender with Beam Rifle Last Messages --------------- 04509_ S-10 Pest destroyed. 04509_ K-01 Serf collects debris. 04511_ K-01 Serf destroyed. 04512_ Sneak attack on K-01 Serf. 04512_ K-01 Serf destroyed. 04513_ K-01 Serf collects debris. 04518_ S-10 Pest destroyed. 04518_ U-05 Engineer builds a Wall. 04519_ K-01 Serf collects debris. 04519_ Mining Claw destroyed. 04521_ K-01 Serf collects debris. 04521_ G-47 Trooper suffers critical hit. 04521_ G-47 Trooper destroyed. 04521_ U-05 Engineer lays Concrete. 04522_ K-01 Serf collects debris. 04524_ U-05 Engineer builds a Wall. 04525_ K-01 Serf collects debris. 04528_ U-05 Engineer builds a Wall. 04529_ S-10 Pest destroyed. 04529_ K-01 Serf collects debris. Map ----- +----------------------------------------------------+ | ?????????????????????????????????????????????????? | | ?????????????????????????????????????????????????? | | ?????????????????????????????????????????????????? | | ?????????????????????????????????????????????????? | | ?????????????????????????????????????????????????? | | ?????????????????????????????????????????????????? | | ?????????????????????????????????????????????????? | | ?????????????????????????????????????????????????? | | ?????????????????????????????????????????????????? | | ?????????????????????????????????????????????????? | | ?????????????????????????????????????????????????? | | ?????????????????????????????????????????????????? | | ?????????????????????????????????????????????????? | | ?????????????????????????????????????????????????? | | ???????????? ]???????????????????????????????????? | | ???????????? ???????????????????????????????????? | | ???????????? ??????????????????????????????????? | | ????????????? ???????????????????#??????????????? | | ??????????####/#####??????????###T#### ???????? | | ??????????# #?######## ^ ?????????? | | ??????????# """ #?# k%==# ^ ???????????? | | ??????????# """ #?# [%!g#% """ "???????????? | | ??????????# """ ### !!=ks/=* "" "???????????? | | ?????####?# ###=!=k[g#= """ ????????????? | | ?????# ### ###usg%=[# ?????????? | | ?????# + + "T" ###[u%@%=#?? ! ??????? | | ?????###### """ = ###/#Y####????# ???????? | | ??????????# # g[%#??????????######???????? | | ??????????##########"S g%#???????????????????????? | | ?????????###########""" #???????????????????????? | | ?????????# # "" #???????????????????????? | | ?????##### # [#???????????????????????? | | ???? # # ! #???????????????????????? | | ??# """ # # +???????????????????????? | | ??# """ # # """ #???????????????????????? | | ??# """ # # """ #???????????????????????? | | ??# # # """ #???????????????????????? | | ??# """ # # #???????????????????????? | | ??# """ #### ######*?? #???????????????????????? | | ??# """ #?# ###########???????????????????????? | | ??# #?# # #???????????????????????? | | ??# """ #?# # !#???????????????????????? | | ??# """ #?# + #???????????????????????? | | ??# """ #?# # #???????????????????????? | | ### #?# ###########???????????????????????? | | #####+##### #?????????????????????????????????? | | #########?????????????????????????? | | #?????????????????????????? | | ####### #?????????????????????????? | | ############+######?# #?????????????????????????? | +----------------------------------------------------+ Best States ------------- Heat Dissipation 45 Energy Generation 14 Energy Capacity 265 Matter Stores 300 Matter Capacity 300 Sight Range 16 Robot Scan Range 13 Terrain Scan Range 16 Terrain Scan Density 10 Base Temperature (-) 100 Armor Coverage 150 Resistance: KI 20 Resistance: TH 30 Resistance: EX 20 Resistance: EM 20 Resistance: I 20 Resistance: S 20 Resistance: P 20 Evasion (%) 40 Targeting Accuracy 6 Offensive Hacking 20 Item Schematics ----------------- Imp. Heat Sink | -9/Materials | Scanalyzed EM Pulse Gun | -9/Materials | Scanalyzed Imp. Targeting Computer | -9/Materials | Scanalyzed Imp. Hover Unit | -9/Materials | Scanalyzed Cld. Ion Engine | -9/Materials | Scanalyzed Cryofiber Web | -9/Materials | Scanalyzed Reflective Plating | -9/Materials | Scanalyzed Autogun | -9/Materials | Scanalyzed Shock Rifle | -8/Materials | Scanalyzed Adv. Beam Rifle | -8/Materials | Scanalyzed Pulse Rifle | -8/Materials | Scanalyzed Robot Schematics ------------------ None Fabricated ------------ Nothing Alien Tech Used ----------------- None Achievements -------------- None Challenges ------------ None Game ------ Seed MiniCatalystCasing Manual? 0 Play Time 00:42:09 Cumulative 23.4 hours Start 2021.02.15 @ 19:44:48 End 2021.02.15 @ 20:24:47 Sessions 1 Manual Loads 0 Difficulty Adventurer Special Mode None Game No. 35 Rogue 3 Adventurer 32 Explorer 0 Win Type - Total 0 Types 0/0/0/0/0/0/0/0/0 Lore% 32 Gallery% 35 Achievement% 31 Wizard Run 0 Options --------- ASCII 0 Keyboard 0 Movement Arrows Keybinds 0 Fullscreen 1 Font 16/SmallcapsGlow Map View 75x55 Tactical HUD 1 Map Filters NONE Filters NONE Steam 0 RUN: b3d8b8b3-cb91-4f0d-b1eb-b89fa123844c